Cogmind - Beta 17.1 @@@ ROGUE MODE // 2026.09.08 @ 09:10:57 Player: MOPO3 Result: Self-destructed Performance ------------- Evolutions (1) 500 Regions Visited (3) 600 Robots Destroyed (24) 120 Value Destroyed (348) 348 Prototype IDs (2) 40 Alien Tech Used (0) 0 Bonus (0) 0 TOTAL SCORE: 1608 Bonus ------- None Cogmind --------- Core Integrity 277/400 Matter 247/300 Energy 100/100 System Corruption 0% Temperature Cool (9) Movement Core (700) Ox13 Location -9/Materials Parts ------- > --- POWER (1) -------- (None) > --- PROPULSION (2) --- (None) > --- UTILITY (4) ------ High-capacity Storage Unit Sensor Array > --- WEAPON (2) ------- (None) > --- INVENTORY (20) --- Ion Engine Aluminum Leg Aluminum Leg Flight Unit Flight Unit Small Laser Light Assault Rifle Light Assault Rifle Light Assault Rifle Mace Peak State ------------ > --- POWER ------------ Ion Engine > --- PROPULSION ------- Aluminum Leg Aluminum Leg > --- UTILITY ---------- High-capacity Storage Unit Sensor Array Seismic Detector ECM Suite > --- WEAPON ----------- Light Assault Rifle Mace > --- INVENTORY -------- Ion Engine Aluminum Leg Aluminum Leg Flight Unit Flight Unit Small Laser Light Assault Rifle Light Assault Rifle Light Assault Rifle Light Assault Rifle [Rating: 11] Favorites ----------- Power Ion Engine Engine Ion Engine Propulsion Aluminum Leg Leg Aluminum Leg Utility Seismic Detector Device Seismic Detector Storage High-capacity Storage Unit Weapon Light Assault Rifle Ballistic Gun Light Assault Rifle Impact Weapon Mace Build | -11 -10 -10 -9 ------- Run | Yrd Mat Min Mat Slots Evolved 2 | . . . 2 Power . | . . . . Propulsion . | . . . . Utility 2 | . . . 2 Weapon . | . . . . Parts Attached 15 | 7 3 . 5 Power 1 | 1 . . . Engine 1 | 1 . . . Core . | . . . . Reactor . | . . . . Propulsion 2 | 2 . . . Treads . | . . . . Leg 2 | 2 . . . Wheel . | . . . . Hover . | . . . . Flight . | . . . . Utility 7 | 2 3 . 2 Device 3 | 1 . . 2 Storage 4 | 1 3 . . Processor . | . . . . Hackware . | . . . . Protection . | . . . . Artifact . | . . . . Weapon 5 | 2 . . 3 Energy Gun . | . . . . Energy Cannon . | . . . . Ballistic Gun 4 | 2 . . 2 Ballistic Cannon . | . . . . Launcher . | . . . . Special Weapon . | . . . . Impact Weapon 1 | . . . 1 Slashing Weapon . | . . . . Piercing Weapon . | . . . . Special Melee Weapon . | . . . . Unidentified Prototypes . | . . . . Parts Lost 7 | . . . 7 Power 1 | . . . 1 Propulsion 2 | . . . 2 Utility 2 | . . . 2 Weapon 2 | . . . 2 Highest Loss Streak 4 | . . . 4 To Critical Strikes . | . . . . Average Backups 8 | 1 8 11 9 Power . | . 1 1 1 Propulsion 2 | . 1 3 3 Utility 1 | . 2 3 . Weapon 3 | . 3 4 4 Tool/Special . | . . . . Unused Backups 7 | . . . 7 Power 1 | . . . 1 Propulsion 4 | . . . 4 Utility . | . . . . Weapon 2 | . . . 2 Tool/Special . | . . . . Average Slot Usage (%) 97 | . 100 100 91 Engine 12 | . 14 14 8 Leg 24 | . 28 28 17 Device 19 | . 14 14 32 Storage 13 | . 14 14 11 Ballistic Gun 25 | . 28 28 20 Peak Build Rating 11 | 7 8 8 11 Average Rating 7 | 5 7 8 9 On Entrance 5 | . 7 8 8 Avg Prop Armor Cover (%) . | . . . . Naked Turns . | . . . . Heaviest Build 52 | 13 48 48 52 Greatest Support 20 | 20 20 20 20 Greatest Overweight (x) 15 | 1 2 2 15 Average Overweight (x) 1 | . . 2 2 Largest Inventory Capacity 20 | 8 20 20 20 Average Capacity 16 | 7 13 20 20 Most Carried 13 | 2 13 13 10 Average Carried 8 | 1 8 11 9 Final Capacity 20 | 8 20 20 20 Final Carried 13 | 2 13 10 10 Class Distribution -------------------- 100% | Mutant Dominant Class ---------------- Mutant | -10/Materials Mutant | -10/Mines Mutant | -9/Materials Resources | -11 -10 -10 -9 ----------- Run | Yrd Mat Min Mat Matter Collected 484 | 320 92 14 58 Remotely . | . . . . Salvage Created 635 | 161 236 28 210 Parts 41 | 11 11 3 16 Haulers Intercepted . | . . . . Recyclers Shooed 1 | . . . 1 Parts Field Recycled . | . . . . Retrieved Matter . | . . . . Parts Self-Destructed . | . . . . Prevented . | . . . . Parts Restored . | . . . . Kills | -11 -10 -10 -9 ------- Run | Yrd Mat Min Mat Combat Hostiles Destroyed 16 | . 7 . 9 Guns 16 | . 7 . 9 Classes Destroyed 5 | 3 2 . . Worker 4 | 2 . 1 1 Tunneler 3 | 3 . . . Recycler 1 | 1 . . . Swarmer 10 | . 3 . 7 Grunt 6 | . 4 . 2 Best Kill Streak 5 | 3 3 1 5 Combat Bots Only 4 | . 3 . 4 Max Kills in Single Turn 1 | 1 1 1 1 Gunslinging . | . . . . Exploded . | . . . . Melee . | . . . . Uniques/NPCs Destroyed . | . . . . Combat | -11 -10 -10 -9 -------- Run | Yrd Mat Min Mat Hostile Shots Fired 111 | . 31 . 80 Missed 32 | . 8 . 24 Hits 79 | . 23 . 56 Projectile 79 | . 23 . 56 Critical Strikes 2 | . . . 2 Damage Taken 763 | . 251 . 512 Core 172 | . 49 . 123 Absorbed by Shields . | . . . . Core Remaining (%) 90 | 100 . 80 . Volleys Fired 110 | 25 36 2 47 Largest 2 | 2 2 2 2 Hottest 40 | 40 40 40 40 Shots Fired 202 | 50 72 4 76 Gun 202 | 50 72 4 76 Cannon . | . . . . Launcher . | . . . . Special . | . . . . Kinetic 202 | 50 72 4 76 Thermal . | . . . . Explosive . | . . . . Electromagnetic . | . . . . Robot Hit Streak 12 | 11 9 2 12 Robot Miss Streak 4 | 2 4 3 3 Penetration Max . | . . . . Secondary Targets 1 | . . . 1 Max Gunslinging Chain 1 | . . . 1 Shots Hit Robots 125 | 31 39 2 53 Core Hits 48 | 12 15 2 19 Critical Kills . | . . . . Critical Parts Destroyed 2 | 1 1 . . Critical Strikes 2 | 1 1 . . Destroy 2 | 1 1 . . Melee Attacks 2 | . . . 2 Impact 2 | . . . 2 Slashing . | . . . . Piercing . | . . . . Sneak Attacks . | . . . . Combat Hostiles . | . . . . Follow-up Attacks . | . . . . Damage Inflicted 1067 | 267 341 19 440 Guns 1066 | 267 341 18 440 Cannons . | . . . . Explosions . | . . . . Melee . | . . . . Ramming 1 | . . 1 . Kinetic 1066 | 267 341 18 440 Thermal . | . . . . Explosive . | . . . . Electromagnetic . | . . . . Impact . | . . . . Slashing . | . . . . Piercing . | . . . . Highest Corruption . | . . . . Average Corruption . | . . . . Corruption Purged . | . . . . Corruption Blocked . | . . . . Overload Shots . | . . . . Overflow Damage . | . . . . Projectiles . | . . . . Explosions . | . . . . Melee . | . . . . Knockbacks . | . . . . Impact . | . . . . Kinetic . | . . . . Secondary . | . . . . Self-Inflicted Damage . | . . . . Shots . | . . . . Rammed . | . . . . Targets Rammed 1 | . . 1 . Kicked 1 | . . 1 . Crushed . | . . . . Highest Temperature 19 | . 18 . 19 Average Temperature 9 | . 8 . 15 Received Heat Transfer 228 | . 90 . 138 Siege Activations . | . . . . Martial Activations . | . . . . Shielding Activations . | . . . . Robots Disrupted . | . . . . Combat Hostiles . | . . . . Robots Corrupted . | . . . . Combat Hostiles . | . . . . Parts Fried . | . . . . Impact Corruptions . | . . . . Robots Melted . | . . . . Combat Hostiles . | . . . . Parts Melted . | . . . . Heat Transferred . | . . . . Parts Sabotaged . | . . . . Parts Stolen . | . . . . Parts Stripped . | . . . . Power Chain Reactions . | . . . . Alert | -11 -10 -10 -9 ------- Run | Yrd Mat Min Mat Maximum Alert Level . | . . . . Low Security (%) 100 | 100 100 100 100 Level 1 . | . . . . Level 2 . | . . . . Level 3 . | . . . . Level 4 . | . . . . Level 5 . | . . . . High Security . | . . . . Max Security . | . . . . Peak Influence 103 | 5 85 5 103 Initial . | . . . . Average 16 | 1 30 . 15 Influence Increases 511 | 30 255 5 221 Destroy 0b10 Robot/C 320 | . 140 . 180 Destroy 0b10 Robot/NC 40 | 30 . 5 5 Destroy Leader 40 | . 20 . 20 Successful Hack 19 | . 5 . 14 Destroy Structure 2 | . . . 2 Lose Combat Pursuer 90 | . 90 . . Influence Decreases 428 | 30 255 5 138 Time Decay 358 | 30 255 5 68 Lost Part 70 | . . . 70 Squads Dispatched 1 | . . . 1 Investigation . | . . . . Extermination . | . . . . Reinforcement 1 | . . . 1 Assault . | . . . . Garrison . | . . . . Intercept . | . . . . Searches Triggered . | . . . . Construction Impeded . | . . . . Haulers Reinforced . | . . . . Active Scanning Responses . | . . . . Cargo Convoy Interrupts . | . . . . Stealth | -11 -10 -10 -9 --------- Run | Yrd Mat Min Mat Distress Signals 5 | . 3 . 2 Communications Jammed . | . . . . Distress Signals . | . . . . Times Spotted 36 | . 19 . 17 Peak Tracking Total 6 | . 5 . 6 Tactical Retreats 9 | . 6 . 3 ECM-based Alert Blocks 3 | . . . 3 Traps | -11 -10 -10 -9 ------- Run | Yrd Mat Min Mat Traps Triggered 1 | . . . 1 Indirectly . | . . . . Trap Hack Attempts . | . . . . Triggered . | . . . . Disarmed . | . . . . Reprogrammed . | . . . . Reused . | . . . . Traps Extracted . | . . . . Installed . | . . . . Triggered . | . . . . Machines | -11 -10 -10 -9 ---------- Run | Yrd Mat Min Mat Machines Disabled . | . . . . Max in Single Turn . | . . . . Machines Repaired . | . . . . Machines Dismantled . | . . . . Machines Sabotaged . | . . . . Overloaded Fab Kills . | . . . . Hacking | -11 -10 -10 -9 --------- Run | Yrd Mat Min Mat Machines Accessed 9 | . 7 . 2 Terminals 7 | . 5 . 2 Fabricators . | . . . . Repair Stations . | . . . . Recycling Units 2 | . 2 . . Scanalyzers . | . . . . Garrison Access . | . . . . Total Hacks 15 | . 11 . 4 Successful 3 | . 2 . 1 Failed 12 | . 9 . 3 Catastrophic 5 | . 4 . 1 Database Lockouts . | . . . . Manual 9 | . 5 . 4 Terminals 12 | . 8 . 4 Fabricators . | . . . . Repair Stations . | . . . . Recycling Units 3 | . 3 . . Scanalyzers . | . . . . Garrison Access . | . . . . Terminal Hacks 1 | . 1 . . Prototype ID Bank 1 | . 1 . . Fabricator Hacks . | . . . . Repair Station Hacks . | . . . . Recycling Unit Hacks 1 | . 1 . . Retrieve Components 1 | . 1 . . Scanalyzer . | . . . . Garrison Access Hacks . | . . . . Unauthorized Hacks 1 | . . . 1 Terminals 1 | . . . 1 Botnet 1 | . . . 1 Fabricators . | . . . . Repair Stations . | . . . . Recycling Units . | . . . . Scanalyzers . | . . . . Garrison Access . | . . . . Data Cores Recovered . | . . . . Used . | . . . . Hacking Detections 8 | . 6 . 2 Full Trace Events . | . . . . Feedback Events . | . . . . Feedback Blocked . | . . . . Robot Schematics Acquired . | . . . . Robots Built . | . . . . Authchips . | . . . . Time . | . . . . Total Robot Build Rating . | . . . . Part Schematics Acquired . | . . . . Parts Built . | . . . . Authchips . | . . . . Time . | . . . . Total Part Build Rating . | . . . . Part Studies Acquired . | . . . . Parts Repaired . | . . . . Time . | . . . . Parts Recycled . | . . . . Recycled Matter . | . . . . Retrieved Matter . | . . . . Retrieved Components 3 | . 3 . . Parts Scanalyzed . | . . . . Part Schematics Acquired . | . . . . Parts Damaged . | . . . . Bothacking | -11 -10 -10 -9 ------------ Run | Yrd Mat Min Mat Used RIF Installer . | . . . . Robots Hacked . | . . . . Non-combat . | . . . . Combat . | . . . . Robot Hacks Applied . | . . . . Relay Couplers Released . | . . . . Fabnet Peak Effective % . | . . . . Robots Rewired . | . . . . Allies Hacked . | . . . . Hacks Repelled . | . . . . Allies | -11 -10 -10 -9 -------- Run | Yrd Mat Min Mat Total Allies . | . . . . Largest Group . | . . . . Highest-Rated Group . | . . . . Highest-Rated Ally . | . . . . Total Orders . | . . . . Ally Attacks . | . . . . Total Damage . | . . . . Kills . | . . . . Allies Corrupted . | . . . . Allies Melted . | . . . . Intel | -11 -10 -10 -9 ------- Run | Yrd Mat Min Mat Active Infowar (turns) 1610 | 33 741 440 396 Sensors 393 | . . . 393 Seismic 1607 | 33 741 440 393 ECM 395 | . . . 395 Robot Analysis Total . | . . . . Derelict Logs Recovered 1 | . . 1 . Drone Launches . | . . . . Drone Recoveries . | . . . . Exploration | -11 -10 -10 -9 ------------- Run | Yrd Mat Min Mat Turns Passed 1883 | 223 741 440 479 Spaces Moved 704 | 124 325 165 90 Core 8 | 6 . . 2 Treads . | . . . . Legs 696 | 118 325 165 88 Wheels . | . . . . Hover . | . . . . Flight . | . . . . Fastest Speed 50 | 50 120 260 260 Average Speed 199 | 117 177 260 277 Slowest Speed 800 | 120 260 260 800 Overloaded Moves . | . . . . Propulsion Burnouts . | . . . . Robots Hopped . | . . . . Potential Cave-ins . | . . . . Cave-ins Triggered . | . . . . Exploration Rate (%) 28 | 5 56 43 11 Regions Visited 3 Branch Regions 1 Pre-discovered Areas . | . . . . Known Exits Taken 1 | . . 1 . Unknown Exits Taken 2 | 1 1 . . Scrap Searched . | . . . . Spaces Dug 2 | . . . 2 Terrain Destroyed 2 | . . . 2 Melee 2 | . . . 2 Projectile . | . . . . AOE . | . . . . Terrain Rammed . | . . . . Walls Destroyed . | . . . . Machines Disabled . | . . . . Actions | -11 -10 -10 -9 --------- Run | Yrd Mat Min Mat Total 1014 | 157 431 174 252 Wait 168 | . 60 4 104 Move 701 | 123 324 164 90 Hop . | . . . . Pick Up 12 | 2 8 . 2 Fast Attach 9 | 7 . . 2 Attach 2 | . . . 2 Detach . | . . . . Swap 6 | . 3 . 3 Drop 3 | . . 3 . Fire 110 | 25 36 2 47 Melee 2 | . . . 2 Ram . | . . . . Kick 1 | . . 1 . Crush . | . . . . Escape Stasis . | . . . . Rewire . | . . . . Trap . | . . . . Miscellaneous . | . . . . Route ------- -11/Scrapyard -10/Materials -10/Mines (discovered 2 exits: *Mat x2) -9/Materials History --------- Turn | Location | Event 9 | -11/Scrapyard | Discovered new exit (range 15) 224 | -11/Scrapyard | Entered Materials 301 | -10/Materials | Build established: Mutant 563 | -10/Materials | Discovered new exit (range 15) 965 | -10/Materials | Entered Mines 995 | -10/Mines | Met a Derelict bent on vengeance 1101 | -10/Mines | Identified exit to Materials 1327 | -10/Mines | Discovered exit to Materials (range 12) 1405 | -10/Mines | Entered Materials 1405 | -9/Materials | Evolved 2 slots: Utility x2 1827 | -9/Materials | Lost 3 parts (1p2n) 1884 | -9/Materials | Self-destructed Last Messages --------------- 01787_ U-05 Engineer builds a Wall. 01795_ K-01 Serf collects debris. 01796_ Aluminum Leg destroyed. 01798_ K-01 Serf collects debris. 01821_ G-34 Mercenary destroyed. 01824_ K-01 Serf collects debris. 01832_ G-34 Mercenary destroyed. 01833_ R-06 Scavenger collects Heat Sink. 01833_ R-06 Scavenger collects Lgt. Assault Rifle. 01836_ R-06 Scavenger collects Aluminum Leg. 01842_ R-06 Scavenger collects Ion Engine. 01847_ Acquired 58 matter. 01865_ S-10 Pest destroyed. 01870_ ECM Suite destroyed. 01871_ S-10 Pest destroyed. 01871_ Switching to secondary target: Y-45 Defender. 01871_ Seismic Detector destroyed. 01871_ Critical hit (Burn: +37). 01881_ S-10 Pest destroyed. 01884_ Lgt. Assault Rifle destroyed. Map ----- +----------------------------------------------------+ | ?????????????????????????????????????????????????? | | ?????????????????????????????????????????????????? | | ?????????????????????????????????????????????????? | | ?????????????????????????????????????????????????? | | ?????????????????????????????????????????????????? | | ?????????????????????????????????????????????????? | | ?????????????????????????????????????????????????? | | ?????????????????????????????????????????????????? | | ?????????????????????????????????????????????????? | | ?????????????????????????????????????????????????? | | ?????????????????????????????????????????????????? | | ?????????????????????????????????????????????????? | | ?????????????????????????????????????????????????? | | ?????????????##?????"######??????????????????????? | | ????????????? ?? #??????????????????????? | | ????????????? #??????????????????????? | | ?????????????? #??????????????????????? | | ??????????????## #?#????????????????????? | | ??????????????#T # ?????????????????????? | | ???????????????# "T" # ?????????????????????? | | ???????????????# """ /??????????????????????? | | ???????????????# #??????????????????????? | | ????????????????? r r %#??????????????????????? | | ??????????????????????#%% #??????????????????????? | | ????????????????????####Y#####???????????????????? | | ????????????????????# *%@ #???????????????????? | | ????????????????????# %=[ ########????????????? | | ????????????????????# ## #????????????? | | ????????????????????# ## #????????????? | | ????????????????????# ## #????????????? | | ????????????????????# ## """ #????????????? | | ????????????????????# ## """ #????####????? | | ????????????????????# ## """ #????#T"#????? | | ????????????????????# ## ###### "###### | | ????????????????????#############+### | | ?????????????????????????????# | | ?????????????????????????????# | | ?????????????????????????????# ! ^ | | ?????????????????????????????# !/ """ ######## | | ?????????????????????????????# ^!/ """ #??????# | | ?????????????????????????????# """ #??????# | | ?????????????????????????????# #??????# | | ?????????????????????????????# #??????# | | ?????????????????????????????# """ """ #??????# | | ?????????????????????????????# """ """ #??????# | | ?????????????????????????????# """ """ #??????# | | ?????????????????????????????# ^ #??????? | | ????????????????????????????? ?? #??????? | | ????????????????????????????? ? #??????? | | ???????????????????????????? ??? ???????? | +----------------------------------------------------+ Best States ------------- Heat Dissipation 28 Energy Generation 10 Energy Capacity 250 Matter Stores 300 Matter Capacity 300 Sight Range 16 Robot Scan Range 14 Terrain Scan Density 10 ECM Strength 1 Evasion (%) 55 Item Schematics ----------------- None Robot Schematics ------------------ None Fabricated ------------ Nothing Repaired ---------- Nothing Studied --------- None Alien Tech Used ----------------- None Achievements -------------- None Challenges ------------ None Game ------ Seed WarpHellfireGuard Manual? 0 Play Time 00:14:48 Cumulative 8.7 hours Start 2026.09.08 @ 08:56:39 End 2026.09.08 @ 09:10:57 Sessions 1 Manual Loads 0 Difficulty Rogue Special Mode None Game No. 13 Rogue 13 Adventurer 0 Explorer 0 Win Type - Total 0 Types 0/0/0/0/0/0/0/0/0/0 Lore% 9 Gallery% 17 Achievement% 22 Wizard Run 0 Options --------- Layout 0 ASCII 0 Keyboard 0 Movement Numpad Keybinds 0 Fullscreen 1 Font 18/Terminus Map View 76x50 Zoom Use 0% Tactical HUD 1 Map Filters NONE Filters NONE Steam 1 RUN: 2de57538-9cee-4011-bb93-bbe1a981efb2